bitfinex-derivatives/quotes_BTCF0:USTF0_20250911
["timestamp","ask_amount","ask_price","bid_price","bid_amount"]
[1757595200410,1.60930834,114130.0,114120.0,0.04205]
[1757595200607,1.70058086,114130.0,114120.0,0.01624]
[1757595200914,1.69978086,114130.0,114120.0,0.04205]
[1757595201116,1.60850834,114130.0,114120.0,0.04205]
[1757595201317,0.43174834,114130.0,114120.0,0.13332252]
[1757595201512,1.35838834,114130.0,114120.0,0.13332252]
[1757595201716,0.99754834,114130.0,114120.0,0.22459504]
[1757595202018,0.99754834,114130.0,114120.0,0.47459504]
[1757595202206,0.43174834,114130.0,114120.0,0.47459504]
[1757595202410,1.35830834,114130.0,114120.0,0.38332252]
[1757595202611,0.99750834,114130.0,114120.0,0.47459504]
[1757595202811,0.99750834,114130.0,114120.0,0.29205]
[1757595203011,0.99750834,114130.0,114120.0,0.47459504]
[1757595204719,0.99750834,114130.0,114120.0,0.38332252]
[1757595204917,1.35830834,114130.0,114120.0,0.38332252]
[1757595205224,1.44958086,114130.0,114120.0,0.38332252]
[1757595205419,1.35830834,114130.0,114120.0,0.38332252]
[1757595205630,1.35830834,114130.0,114120.0,0.04205]
[1757595205631,1.44958086,114130.0,114120.0,0.04205]
[1757595206314,0.43174834,114130.0,114120.0,0.22459504]
[1757595206522,1.35774834,114130.0,114120.0,0.22459504]
[1757595207225,1.35766834,114130.0,114120.0,0.13332252]
[1757595207424,0.99686834,114130.0,114120.0,0.13332252]
[1757595207625,0.99670834,114130.0,114120.0,0.04205]
[1757595208018,1.35750834,114130.0,114120.0,0.04205]
[1757595208224,1.44878086,114130.0,114120.0,0.04205]
[1757595210629,1.69878086,114130.0,114120.0,0.04205]
[1757595210825,1.69878086,114130.0,114120.0,0.01624]
[1757595211533,1.69878086,114130.0,114120.0,0.04244]
[1757595211833,1.69878086,114130.0,114120.0,0.01624]
[1757595213438,1.69878086,114130.0,114120.0,0.025]
[1757595213637,1.60750834,114130.0,114120.0,0.025]
[1757595213936,1.69798086,114130.0,114120.0,0.025]
[1757595214638,1.78925338,114130.0,114120.0,0.025]
[1757595215234,0.77302086,114130.0,114120.0,0.025]
[1757595215533,0.68174834,114130.0,114120.0,0.0512]
[1757595215840,1.44770086,114130.0,114120.0,0.0512]
[1757595216332,1.35642834,114130.0,114120.0,0.0512]
[1757595216531,1.44770086,114130.0,114120.0,0.0512]
[1757595216837,1.44766086,114130.0,114120.0,0.0512]
[1757595217333,1.44766086,114130.0,114120.0,0.025]
[1757595218140,1.69766086,114130.0,114120.0,0.025]
[1757595218438,0.77302086,114130.0,114120.0,0.025]
[1757595218637,1.69734086,114130.0,114120.0,0.025]
[1757595219135,1.71490637,114130.0,114120.0,0.025]
[1757595219335,1.46490637,114130.0,114120.0,0.025]
[1757595221240,1.80617889,114130.0,114120.0,0.025]
[1757595222237,1.91984161,114130.0,114110.0,0.01624]
[1757595222433,1.46710504,114120.0,114110.0,0.01624]
[1757595222837,0.54334504,114120.0,114110.0,0.01624]
[1757595223045,1.46702504,114120.0,114110.0,0.01624]
[1757595223745,0.54334504,114120.0,114110.0,0.01624]
[1757595224044,1.46706504,114120.0,114110.0,0.01624]
[1757595224344,0.54334504,114120.0,114110.0,0.01724]
[1757595224544,1.46686504,114120.0,114110.0,0.01724]
[1757595226242,1.71686504,114120.0,114110.0,0.01724]
[1757595226447,1.80813756,114120.0,114100.0,0.07914784]
[1757595226747,0.54334504,114110.0,114090.0,0.07918783]
[1757595226936,1.46654504,114100.0,114090.0,0.07918783]
[1757595227137,1.55781756,114100.0,114090.0,0.07918783]
[1757595227337,1.46654504,114100.0,114090.0,0.01624]
[1757595227738,0.79334504,114100.0,114090.0,0.01624]
[1757595227937,1.71638504,114100.0,114090.0,0.01824]
[1757595228543,0.6108,114100.0,114090.0,0.01624]
[1757595228746,1.53384,114100.0,114090.0,0.01924]
[1757595229048,1.71638504,114100.0,114090.0,0.01924]
[1757595229351,1.28376,114100.0,114090.0,0.01924]
[1757595229534,1.46630504,114100.0,114090.0,0.01924]
[1757595230138,0.54334504,114100.0,114090.0,0.02224]
[1757595230348,1.46610504,114100.0,114090.0,0.02224]
[1757595230549,1.46610504,114100.0,114090.0,0.04844]
[1757595230740,1.46610504,114100.0,114090.0,0.02224]
[1757595231140,0.54334504,114100.0,114090.0,0.02224]
[1757595231442,1.46594504,114100.0,114090.0,0.02224]
[1757595232536,0.54334504,114100.0,114090.0,0.02224]
[1757595232739,1.46578504,114100.0,114090.0,0.02224]
[1757595233844,1.46562504,114100.0,114090.0,0.02224]
[1757595234241,1.28308,114100.0,114090.0,0.04792]
[1757595234443,1.283,114100.0,114090.0,0.29792]
[1757595234642,1.37427252,114100.0,114090.0,0.29792]
[1757595234842,1.37423252,114100.0,114090.0,0.29792]
[1757595236350,0.3608,114100.0,114090.0,0.38919252]
[1757595236546,1.28272,114100.0,114090.0,0.36086783]
[1757595236747,1.37399252,114100.0,114090.0,0.36086783]
[1757595237543,0.3608,114100.0,114090.0,0.45214035]
[1757595237744,0.37833305,114110.0,114100.0,0.04141]
[1757595237946,1.30005305,114110.0,114100.0,0.19551249]
[1757595238250,0.37833305,114110.0,114100.0,0.19551249]
[1757595238450,1.29997305,114110.0,114100.0,0.13268252]
[1757595238652,1.39124557,114110.0,114100.0,0.04141]
[1757595240053,1.39124557,114110.0,114100.0,0.10426347]
[1757595240652,1.29997305,114110.0,114100.0,0.04141]
[1757595240853,1.29997305,114110.0,114100.0,0.04341]
[1757595240854,1.39124557,114110.0,114100.0,0.04341]
[1757595241648,1.39124557,114110.0,114100.0,0.04541]
[1757595242054,1.29997305,114110.0,114100.0,0.04541]
[1757595242255,1.29997305,114110.0,114100.0,0.13668252]
[1757595242451,1.29937305,114110.0,114100.0,0.38668252]
[1757595242655,0.93857305,114110.0,114100.0,0.38668252]
[1757595242849,0.93857305,114110.0,114100.0,0.3737882]
[1757595243054,0.93845305,114110.0,114100.0,0.46506072]
[1757595244050,0.01753305,114110.0,114100.0,0.46506072]
[1757595244359,1.07510939,114110.0,114100.0,0.3737882]
[1757595244651,0.01753305,114110.0,114100.0,0.51068454]
[1757595244862,1.07506939,114110.0,114100.0,0.51068454]
[1757595245249,1.07502939,114110.0,114100.0,0.51068454]
[1757595245452,0.15442939,114110.0,114100.0,0.51068454]
[1757595245650,1.43574939,114110.0,114100.0,0.3583099]
[1757595247448,1.57264573,114110.0,114100.0,0.0826299]
[1757595247747,1.82264573,114110.0,114100.0,0.0981082]
[1757595247952,1.82264573,114110.0,114100.0,0.08264735]
[1757595249157,1.82264573,114110.0,114100.0,0.01973]
[1757595249359,1.82264573,114110.0,114100.0,0.08264735]
[1757595249557,1.95954207,114110.0,114100.0,0.02262735]
[1757595249752,1.95954207,114110.0,114100.0,0.01573]
[1757595249753,1.82264573,114110.0,114100.0,0.01573]
[1757595250058,1.95954207,114110.0,114100.0,0.01573]
[1757595250253,1.95954207,114110.0,114090.0,0.04762735]
[1757595250461,0.77148902,114100.0,114090.0,0.04762735]
[1757595250645,0.77148902,114100.0,114090.0,0.025]
[1757595251651,0.77148902,114100.0,114090.0,0.027]
[1757595252160,0.77148902,114100.0,114090.0,0.029]
[1757595252952,1.69112902,114100.0,114090.0,0.029]
[1757595253653,0.3608,114100.0,114090.0,0.029]
[1757595254057,1.55375268,114100.0,114090.0,0.05468]
[1757595254247,1.55371268,114100.0,114090.0,0.05268]
[1757595254458,2.40219268,114100.0,114090.0,0.029]
[1757595254760,3.32127268,114100.0,114090.0,0.029]
[1757595256361,2.40219268,114100.0,114090.0,0.05468]
[1757595256561,3.32095268,114100.0,114090.0,0.029]
[1757595256757,2.40219268,114100.0,114090.0,0.05468]
[1757595256963,3.32091268,114100.0,114090.0,0.05468]
[1757595258266,3.32091268,114100.0,114090.0,0.029]
[1757595260273,3.04712,114100.0,114090.0,0.05468]
[1757595260470,3.32091268,114100.0,114090.0,0.05468]
[1757595260869,3.68171268,114100.0,114090.0,0.04592]
[1757595261071,3.40792,114100.0,114090.0,0.04592]
[1757595261368,2.62609634,114100.0,114090.0,0.04592]
[1757595261567,2.62609634,114100.0,114090.0,0.49573849]
[1757595261768,3.54409634,114100.0,114090.0,0.49573849]
[1757595261970,2.62609634,114100.0,114090.0,0.49573849]
[1757595262273,3.04632,114100.0,114090.0,0.51995454]
[1757595262675,2.26529634,114100.0,114090.0,0.51995454]
[1757595262868,3.18321634,114100.0,114090.0,0.51995454]
[1757595264569,2.26529634,114100.0,114090.0,0.51995454]
[1757595264878,3.18281634,114100.0,114090.0,0.51995454]
[1757595265382,3.18281634,114100.0,114090.0,0.3830582]
[1757595265675,3.18281634,114100.0,114090.0,0.58286069]
[1757595265874,3.18281634,114100.0,114090.0,0.50448249]
[1757595266082,3.04592,114100.0,114090.0,0.50448249]
[1757595266278,3.18281634,114100.0,114090.0,0.50448249]
[1757595266882,2.1284,114100.0,114090.0,0.50448249]
[1757595267082,3.18245634,114100.0,114090.0,0.50448249]
[1757595267479,3.18233634,114100.0,114090.0,0.50448249]
[1757595267881,3.18233634,114100.0,114090.0,0.51995454]
[1757595268086,2.1284,114100.0,114090.0,0.51995454]
[1757595268386,3.04528,114100.0,114090.0,0.41443884]
[1757595268682,1.27768,114100.0,114090.0,0.44157634]
[1757595269483,1.41457634,114100.0,114090.0,0.44157634]
[1757595269885,1.27768,114100.0,114090.0,0.44157634]
[1757595270084,0.91688,114100.0,114090.0,0.44157634]
[1757595270780,0.37833305,114110.0,114100.0,0.01513]
[1757595270989,1.43178939,114110.0,114100.0,0.23935452]
[1757595271576,0.51522939,114110.0,114100.0,0.23935452]
[1757595271776,1.43158939,114110.0,114100.0,0.23935452]
[1757595272174,1.43158939,114110.0,114100.0,0.17845634]
[1757595272479,1.43158939,114110.0,114100.0,0.2570832]
[1757595273381,1.43158939,114110.0,114100.0,0.12018686]
[1757595273382,1.29461305,114110.0,114100.0,0.12018686]
[1757595273587,1.29461305,114110.0,114100.0,0.39397954]
[1757595273780,1.29461305,114110.0,114100.0,0.12018686]
[1757595273982,1.43150939,114110.0,114100.0,0.39397954]
[1757595274181,1.07070939,114110.0,114100.0,0.39397954]
[1757595274380,1.07070939,114110.0,114100.0,0.12018686]
[1757595274883,1.07070939,114110.0,114100.0,0.39397954]
[1757595275280,0.93381305,114110.0,114100.0,0.39397954]
[1757595275985,1.07070939,114110.0,114100.0,0.37823543]
[1757595276189,1.07070939,114110.0,114100.0,0.17845634]
[1757595276387,1.07070939,114110.0,114100.0,0.24133308]
[1757595276893,1.43150939,114110.0,114100.0,0.24133308]
[1757595277282,0.93381305,114110.0,114100.0,0.24133308]
[1757595277478,1.43150939,114110.0,114100.0,0.17845634]
[1757595278190,1.43150939,114110.0,114100.0,0.37821821]
[1757595278489,1.29461305,114110.0,114100.0,0.31535268]
[1757595278676,1.43150939,114110.0,114100.0,0.31535268]
[1757595278884,1.29461305,114110.0,114100.0,0.31535268]
[1757595279081,1.43150939,114110.0,114100.0,0.31535268]
[1757595279281,0.37833305,114110.0,114100.0,0.17845634]
[1757595279482,0.15442939,114110.0,114100.0,0.17845634]
[1757595279688,0.15442939,114110.0,114100.0,0.25703015]
[1757595279891,1.06930939,114110.0,114100.0,0.25703015]
[1757595280092,0.93241305,114110.0,114100.0,0.25703015]
[1757595280292,1.06930939,114110.0,114100.0,0.25703015]
[1757595280691,0.93241305,114110.0,114100.0,0.18298978]
[1757595280892,1.06930939,114110.0,114100.0,0.10441597]
[1757595281192,1.06930939,114110.0,114100.0,0.24131231]
[1757595281394,1.29321305,114110.0,114100.0,0.24131231]
[1757595281591,0.93241305,114110.0,114100.0,0.24131231]
[1757595281891,1.06930939,114110.0,114100.0,0.10441597]
[1757595282092,0.93241305,114110.0,114100.0,0.24131231]
[1757595282284,1.06930939,114110.0,114100.0,0.24131231]
[1757595282685,1.43010939,114110.0,114100.0,0.24131231]
[1757595283584,1.29321305,114110.0,114100.0,0.24131231]
[1757595283791,1.43010939,114110.0,114100.0,0.24131231]
[1757595283986,1.43010939,114110.0,114100.0,0.17845634]
[1757595284492,1.43010939,114110.0,114100.0,0.25706559]
[1757595284692,1.43010939,114110.0,114100.0,0.26582559]
[1757595285595,1.29321305,114110.0,114100.0,0.26582559]
[1757595285897,0.15442939,114110.0,114100.0,0.68491268]
[1757595286094,1.06846939,114110.0,114100.0,0.68491268]
[1757595286304,1.06846939,114110.0,114100.0,0.32411268]
[1757595286797,0.93157305,114110.0,114100.0,0.32411268]
[1757595287097,1.06846939,114110.0,114100.0,0.18721634]
[1757595287795,0.93157305,114110.0,114100.0,0.18721634]
[1757595287989,1.06846939,114110.0,114100.0,0.18721634]
[1757595288385,0.01753305,114110.0,114100.0,0.40272193]
[1757595288599,1.06766939,114110.0,114100.0,0.40272193]
[1757595288895,1.06766939,114110.0,114100.0,0.79467152]
[1757595289092,0.93077305,114110.0,114100.0,0.79467152]
[1757595289498,1.06766939,114110.0,114100.0,0.79467152]
[1757595289696,0.15442939,114110.0,114100.0,0.79467152]
[1757595289991,2.21595385,114130.0,114120.0,0.01513]
[1757595290193,3.26585019,114130.0,114120.0,0.25514809]
[1757595290394,3.26585019,114130.0,114120.0,0.11825175]
[1757595290600,3.12895385,114130.0,114120.0,0.11825175]
[1757595290799,3.26585019,114130.0,114120.0,0.11825175]
[1757595291000,3.12895385,114130.0,114120.0,0.11825175]
[1757595291202,3.26585019,114130.0,114120.0,0.11825175]
[1757595291395,3.26585019,114130.0,114120.0,0.10255696]
[1757595291591,3.65274653,114130.0,114120.0,0.10255696]
[1757595292201,3.65374653,114130.0,114120.0,0.10255696]
[1757595292601,3.65474653,114130.0,114120.0,0.10255696]
[1757595292795,3.65438653,114130.0,114120.0,0.10255696]
[1757595293301,3.51749019,114130.0,114120.0,0.03956]
[1757595293498,3.51749019,114130.0,114120.0,0.11825175]
[1757595294496,3.65438653,114130.0,114120.0,0.11825175]
[1757595294695,3.65438653,114130.0,114120.0,0.09382175]
[1757595294891,3.65438653,114130.0,114120.0,0.07814054]
[1757595295706,2.74174653,114130.0,114120.0,0.01513]
[1757595296102,3.65358653,114130.0,114120.0,0.01513]
[1757595297503,3.65354653,114130.0,114120.0,0.1038377]
[1757595297805,3.65354653,114130.0,114120.0,0.04082]
[1757595298294,3.51665019,114130.0,114120.0,0.04082]
[1757595298498,2.60485019,114130.0,114120.0,0.04082]
[1757595298895,3.51617019,114130.0,114120.0,0.04082]
[1757595299202,3.51617019,114130.0,114120.0,0.04958]
[1757595299404,3.51617019,114130.0,114120.0,0.12827175]
[1757595299704,3.26617019,114130.0,114120.0,0.12827175]
[1757595301002,3.40306653,114130.0,114120.0,0.12827175]
[1757595301503,1.83958834,114130.0,114120.0,0.87596809]
[1757595301701,1.76964,114130.0,114120.0,0.93417268]
[1757595301906,2.68036,114130.0,114120.0,1.01286443]
[1757595302101,2.68036,114130.0,114120.0,1.04393152]
[1757595302311,2.68036,114130.0,114120.0,0.54623518]
[1757595302502,2.68036,114130.0,114120.0,0.40933884]
[1757595302503,2.81725634,114130.0,114120.0,0.40933884]
[1757595302702,2.68036,114130.0,114120.0,0.40933884]
[1757595302902,2.81725634,114130.0,114120.0,0.40933884]
[1757595303406,2.81725634,114130.0,114120.0,0.15933884]
[1757595304300,2.95415268,114130.0,114120.0,0.13364884]
[1757595305096,2.81725634,114130.0,114120.0,0.15933884]
[1757595305292,1.90653634,114130.0,114120.0,0.15933884]
[1757595305509,2.6796,114130.0,114120.0,0.29623518]
[1757595305701,2.88608033,114130.0,114120.0,0.29623518]
[1757595306306,2.84042746,114130.0,114120.0,0.15933884]
[1757595307310,2.84006746,114130.0,114120.0,0.15933884]
[1757595308403,2.93131093,114130.0,114120.0,0.15933884]
[1757595308604,3.54211093,114130.0,114120.0,0.21238258]
[1757595308910,3.54211093,114130.0,114120.0,0.10262374]
[1757595309506,3.45086746,114130.0,114120.0,0.12831374]
[1757595309810,3.45062746,114130.0,114120.0,0.12831374]
[1757595311100,3.45062746,114130.0,114120.0,0.10262374]
[1757595311697,3.54187093,114130.0,114120.0,0.08689024]
[1757595311902,3.54187093,114130.0,114120.0,0.10262374]
[1757595312310,3.54187093,114130.0,114120.0,0.02389]
[1757595313003,3.54187093,114130.0,114120.0,0.08689539]
[1757595315107,2.63251093,114130.0,114120.0,0.08689539]
[1757595315304,3.54067093,114130.0,114120.0,0.08689539]
[1757595315500,3.29063093,114130.0,114120.0,0.08689539]
[1757595316697,2.38251093,114130.0,114120.0,0.08689539]
[1757595317105,3.29027093,114130.0,114120.0,0.11258539]
[1757595317310,3.19902746,114130.0,114120.0,0.11258539]
[1757595317610,2.29126746,114130.0,114120.0,0.11258539]
[1757595317813,3.19902746,114130.0,114120.0,0.11258539]
[1757595318412,3.19902746,114130.0,114120.0,0.12831374]
[1757595318812,3.19902746,114130.0,114120.0,0.10262374]
[1757595319012,3.29027093,114130.0,114120.0,0.02389]
[1757595319409,3.29027093,114130.0,114120.0,0.08688651]
[1757595321012,3.29027093,114130.0,114120.0,0.11257651]
[1757595321403,3.10778399,114130.0,114120.0,0.11257651]
[1757595321815,3.10690399,114130.0,114120.0,0.11257651]
[1757595322008,3.19814746,114130.0,114120.0,0.11257651]
[1757595322610,3.10690399,114130.0,114120.0,0.11257651]
[1757595322813,3.19814746,114130.0,114120.0,0.11257651]
[1757595323212,2.29126746,114130.0,114120.0,0.11257651]
[1757595323509,3.19790746,114130.0,114120.0,0.11257651]
[1757595324012,2.29126746,114130.0,114120.0,0.11257651]
[1757595324207,1.83922399,114130.0,114120.0,0.46955721]
[1757595324407,1.83922399,114130.0,114120.0,0.39082347]
[1757595324712,2.74562399,114130.0,114120.0,0.50058231]
[1757595324907,1.83922399,114130.0,114120.0,0.50058231]
[1757595325113,1.83922399,114130.0,114120.0,0.59182578]
[1757595325114,1.76964,114130.0,114120.0,0.59182578]
[1757595325308,2.67592,114130.0,114120.0,0.59182578]
[1757595325915,1.76964,114130.0,114120.0,0.50058231]
[1757595326217,2.67572,114130.0,114120.0,0.39082347]
[1757595326418,1.76964,114130.0,114120.0,0.39082347]
[1757595326617,2.6756,114130.0,114120.0,0.48206694]
[1757595327018,2.6746,114130.0,114120.0,0.39082347]
[1757595327217,2.6746,114130.0,114120.0,0.48206694]
[1757595327713,2.6746,114130.0,114120.0,0.84286694]
[1757595329119,0.001,114130.0,114120.0,1.06046954]
[1757595329417,0.82764503,114130.0,114120.0,1.06046954]
[1757595330109,0.82764503,114130.0,114120.0,1.21823248]
[1757595330515,0.01786573,114150.0,114130.0,0.0875941]
[1757595330720,0.01786573,114150.0,114140.0,0.69104347]
[1757595330928,0.92298573,114150.0,114140.0,0.69104347]
[1757595331221,0.94471002,114150.0,114140.0,0.12892347]
[1757595331913,0.92298573,114150.0,114140.0,0.12892347]
[1757595332221,0.92298573,114150.0,114140.0,0.49848347]
[1757595332818,0.92278573,114150.0,114140.0,0.84072694]
[1757595334022,0.92278573,114150.0,114140.0,0.84172694]
[1757595335118,0.01786573,114150.0,114140.0,0.92931474]
[1757595335317,0.92234573,114150.0,114140.0,1.00779903]
[1757595335518,0.92234573,114150.0,114140.0,0.92021123]
[1757595336022,0.92234573,114150.0,114140.0,1.00779903]
[1757595336220,0.92234573,114150.0,114140.0,1.03939127]
[1757595336723,0.92234573,114150.0,114140.0,0.92931474]
[1757595337421,0.92234573,114150.0,114140.0,0.84172694]
[1757595339319,0.92234573,114150.0,114140.0,0.59172694]
[1757595340626,0.92234573,114150.0,114140.0,0.70180347]
[1757595340921,1.0135892,114150.0,114140.0,0.22123347]
[1757595341126,1.3743892,114150.0,114140.0,0.11115694]
[1757595341421,1.28314573,114150.0,114140.0,0.11115694]
[1757595341623,1.0135892,114150.0,114140.0,0.11115694]
[1757595342118,1.0135892,114150.0,114140.0,0.20240041]
[1757595342515,1.0135892,114150.0,114140.0,0.11115694]
[1757595343225,1.0135892,114150.0,114140.0,0.12683421]
[1757595343423,1.0135892,114150.0,114140.0,0.04844]
[1757595343627,1.2635892,114150.0,114140.0,0.04844]
[1757595343933,0.7199092,114150.0,114140.0,0.11115979]
[1757595344220,1.6222292,114150.0,114140.0,0.11115979]
[1757595346023,1.6222292,114150.0,114140.0,0.04844]
[1757595346229,1.71347267,114150.0,114140.0,0.08764979]
[1757595346730,1.71291267,114150.0,114140.0,0.02493]
[1757595347620,1.71291267,114150.0,114140.0,0.01076]
[1757595347821,1.80415614,114150.0,114130.0,0.01417]
[1757595348024,0.88453041,114140.0,114130.0,0.01417]
[1757595348220,0.88453041,114140.0,114120.0,0.07784979]
[1757595348423,1.44472694,114130.0,114120.0,0.07784979]
[1757595349220,1.51602771,114130.0,114120.0,0.07784979]
[1757595349823,1.42470424,114130.0,114120.0,0.10135979]
[1757595350022,1.33326077,114130.0,114120.0,0.10135979]
[1757595350225,0.52334424,114130.0,114120.0,0.10135979]
[1757595350426,1.42446424,114130.0,114120.0,0.10135979]
[1757595350624,1.42546424,114130.0,114120.0,0.10135979]
[1757595350929,1.42542424,114130.0,114120.0,0.03864]
[1757595351332,1.42534424,114130.0,114120.0,0.01513]
[1757595351522,1.42534424,114130.0,114120.0,0.01813]
[1757595351721,1.42522424,114130.0,114120.0,0.01813]
[1757595352027,1.42518424,114130.0,114120.0,0.01813]
[1757595352532,1.42618424,114130.0,114120.0,0.01513]
[1757595352825,0.52534424,114130.0,114120.0,0.01513]
[1757595353125,1.42610424,114130.0,114120.0,0.01513]
[1757595353427,0.52534424,114130.0,114120.0,0.01513]
[1757595353634,1.42598424,114130.0,114120.0,0.01513]
[1757595353826,1.42598424,114130.0,114120.0,0.03978]
[1757595354728,0.52534424,114130.0,114120.0,0.03978]
[1757595354920,1.42558424,114130.0,114120.0,0.03978]
[1757595355524,0.52534424,114130.0,114120.0,0.03978]
[1757595355829,1.85807118,114130.0,114110.0,0.05319979]
[1757595356022,2.66930888,114120.0,114090.0,0.09256421]
[1757595356222,0.90408694,114100.0,114090.0,0.00636021]
[1757595356826,0.7216,114100.0,114090.0,0.00636021]
[1757595357023,0.92510845,114100.0,114090.0,0.00636021]
[1757595358431,0.8701844,114100.0,114090.0,0.00636021]
[1757595359428,1.7697044,114100.0,114090.0,0.00636021]
[1757595359632,1.7697044,114100.0,114090.0,0.00936021]
[1757595360332,1.7697044,114100.0,114090.0,0.01136021]
[1757595364036,1.64214151,114100.0,114090.0,0.01136021]
[1757595364339,0.8701844,114100.0,114090.0,0.01136021]
[1757595364539,1.7687044,114100.0,114090.0,0.03601021]
[1757595365229,1.7687044,114100.0,114090.0,0.01136021]
[1757595366440,1.76955807,114100.0,114090.0,0.01136021]
[1757595366931,2.14797463,114100.0,114090.0,0.01136021]
[1757595367338,2.16573558,114100.0,114090.0,0.005]
[1757595367536,2.16573558,114100.0,114080.0,0.01475]
[1757595367833,0.61763312,114090.0,114080.0,0.01475]
[1757595368339,0.61763312,114090.0,114080.0,0.0394]
[1757595368340,1.25864,114090.0,114080.0,0.0394]
[1757595368540,1.38705656,114090.0,114080.0,0.0394]
[1757595368740,1.25864,114090.0,114080.0,0.0394]
[1757595368935,1.38705656,114090.0,114080.0,0.0414]
[1757595369336,1.38705656,114090.0,114080.0,0.0444]
[1757595369641,1.25864,114090.0,114080.0,0.0444]
[1757595369829,1.38705656,114090.0,114080.0,0.0424]
[1757595370025,1.38705656,114090.0,114080.0,0.0454]
[1757595370838,0.48921656,114090.0,114080.0,0.0454]
[1757595371036,1.32700715,114090.0,114080.0,0.42381656]
[1757595371440,1.32700715,114090.0,114080.0,0.2954]
[1757595371738,1.45542371,114090.0,114080.0,0.0454]
[1757595372136,1.58384027,114090.0,114080.0,0.01775]
[1757595372341,1.58484027,114090.0,114080.0,0.01775]
[1757595372540,1.58584027,114090.0,114080.0,0.01475]
[1757595375142,0.55998371,114090.0,114080.0,0.0394]
[1757595375441,1.45678371,114090.0,114080.0,0.0394]
[1757595375642,1.32832715,114090.0,114080.0,0.2894]
[1757595375836,1.45674371,114090.0,114080.0,0.2894]
[1757595376332,1.58516027,114090.0,114080.0,0.01475]
[1757595376537,0.55998371,114090.0,114080.0,0.0394]
[1757595376739,1.45658371,114090.0,114080.0,0.0394]
[1757595377042,1.45654371,114090.0,114080.0,0.0394]
[1757595377352,0.55998371,114090.0,114080.0,0.0394]
[1757595377635,1.45642371,114090.0,114080.0,0.0394]
[1757595377836,1.58484027,114090.0,114080.0,0.01475]
[1757595379645,1.32800715,114090.0,114080.0,0.01475]
[1757595379847,1.45642371,114090.0,114080.0,0.0394]
[1757595380346,1.46498308,114090.0,114080.0,0.0394]
[1757595381442,1.60195901,114090.0,114080.0,0.0394]
[1757595381645,1.60195901,114090.0,114080.0,0.01475]
[1757595382145,1.98893494,114090.0,114080.0,0.01475]
[1757595382345,1.85195901,114090.0,114080.0,0.01475]
[1757595383443,1.85103901,114090.0,114080.0,0.01475]
[1757595383651,1.60103901,114090.0,114080.0,0.01475]
[1757595384744,1.85103901,114090.0,114080.0,0.01475]
[1757595384950,1.85103901,114090.0,114070.0,0.01475]
[1757595385151,0.63475186,114080.0,114070.0,0.01475]
[1757595386452,0.63475186,114080.0,114070.0,0.01575]
[1757595387451,1.52963186,114080.0,114070.0,0.04058]
[1757595387945,1.52963186,114080.0,114070.0,0.04158]
[1757595388251,1.52963186,114080.0,114070.0,0.01675]
[1757595388643,1.66660779,114080.0,114070.0,0.01675]
[1757595391256,1.91660779,114080.0,114070.0,0.002]
[1757595391448,1.93849796,114080.0,114070.0,0.002]
[1757595392254,1.93849272,114080.0,114070.0,0.002]
[1757595392849,1.93769272,114080.0,114070.0,0.002]
[1757595393352,1.93765272,114080.0,114070.0,0.002]
[1757595393552,1.93757272,114080.0,114070.0,0.002]
[1757595394655,1.04361272,114080.0,114070.0,0.002]
[1757595394848,1.93737272,114080.0,114070.0,0.002]
[1757595395447,1.04361272,114080.0,114070.0,0.002]
[1757595395648,1.91548779,114080.0,114070.0,0.01584]
[1757595396249,1.02172779,114080.0,114070.0,0.01584]
[1757595396553,1.04359938,114080.0,114070.0,0.01584]
[1757595396753,1.93703938,114080.0,114070.0,0.01584]
[1757595399252,1.68703938,114080.0,114070.0,0.01584]
[1757595401256,1.68703261,114080.0,114070.0,0.01584]
[1757595401661,1.66516779,114080.0,114070.0,0.01584]
[1757595402357,0.77172779,114080.0,114070.0,0.01584]
[1757595402556,1.66424779,114080.0,114070.0,0.01584]
[1757595403060,0.77172779,114080.0,114070.0,0.01584]
[1757595403260,1.66424779,114080.0,114070.0,0.04067]
[1757595403447,0.3608,114080.0,114070.0,0.04067]
[1757595403754,1.25316,114080.0,114070.0,0.01584]
[1757595404059,1.66408779,114080.0,114070.0,0.01584]
[1757595405460,3.43220779,114080.0,114070.0,0.01584]
[1757595406256,2.40287186,114080.0,114070.0,0.04067]
[1757595406462,3.29475186,114080.0,114070.0,0.29067]
[1757595406657,2.40287186,114080.0,114070.0,0.29067]
[1757595406860,3.02072,114080.0,114070.0,0.42764593]
[1757595407058,3.02072,114080.0,114070.0,0.29067]
[1757595407254,3.29467186,114080.0,114070.0,0.29067]
[1757595407965,2.12892,114080.0,114070.0,0.29067]
[1757595408165,3.29463186,114080.0,114070.0,0.42764593]
[1757595408363,3.29463186,114080.0,114070.0,0.29067]
[1757595408664,3.29463186,114080.0,114070.0,0.50604014]
[1757595408665,2.12892,114080.0,114070.0,0.50604014]
[1757595408965,2.79669593,114080.0,114070.0,0.50604014]
[1757595409470,2.93367186,114080.0,114070.0,0.36906421]
[1757595411369,2.93367186,114080.0,114070.0,0.42764593]
[1757595411867,2.93367186,114080.0,114070.0,0.29067]
[1757595412068,2.93367186,114080.0,114070.0,0.42764593]
[1757595412669,2.93367186,114080.0,114070.0,0.29067]
[1757595412866,2.93367186,114080.0,114070.0,0.42764593]
[1757595413569,3.29447186,114080.0,114070.0,0.42764593]
[1757595413869,2.93367186,114080.0,114070.0,0.42764593]
[1757595415069,2.65972,114080.0,114070.0,0.42764593]
[1757595415370,2.79669593,114080.0,114070.0,0.53772246]
[1757595415869,2.65836,114080.0,114070.0,0.53772246]
[1757595416370,2.65836,114080.0,114070.0,0.42764593]
[1757595417068,2.79533593,114080.0,114070.0,0.42764593]
[1757595417367,2.79533593,114080.0,114070.0,0.78844593]
[1757595417768,2.65836,114080.0,114070.0,0.78844593]
[1757595418370,2.79533593,114080.0,114070.0,0.78844593]
[1757595419965,2.79533593,114080.0,114070.0,0.42764593]
[1757595420164,2.79533593,114080.0,114070.0,0.78844593]
[1757595420368,2.65836,114080.0,114070.0,0.78844593]
[1757595420568,2.79533593,114080.0,114070.0,0.78844593]
[1757595420770,2.65836,114080.0,114070.0,0.78844593]
[1757595421177,2.79533593,114080.0,114070.0,0.78844593]
[1757595422878,0.56654308,114090.0,114080.0,0.03853]
[1757595423177,1.09462308,114090.0,114080.0,0.53630593]
[1757595423374,1.09462308,114090.0,114080.0,0.64638246]
[1757595423567,1.45542308,114090.0,114080.0,0.28558246]
[1757595423772,1.09462308,114090.0,114080.0,0.17550593]
[1757595424372,1.45542308,114090.0,114080.0,0.17550593]
[1757595424567,1.45542308,114090.0,114080.0,0.25410864]
[1757595424973,1.45542308,114090.0,114080.0,0.11713271]
[1757595426171,1.45542308,114090.0,114080.0,0.25410864]
[1757595426373,1.45542308,114090.0,114080.0,0.03853]